[Event "December 12 Early 2023"]
[Site "https://www.chess.com"]
[Date "2023.12.12"]
[Round "3"]
[White "Rogov, Matfey"]
[Black "Harriott, Tyrell"]
[Result "1-0"]
[Board "184"]
[TimeControl "180+1"]
[WhiteFideId "44191308"]
[BlackFideId "2086484"]
[WhiteElo "2513"]
[BlackElo "2337"]
[WhiteTeam "RUS"]
[BlackTeam "USA"]
[WhiteClock "0:00:25"]
[BlackClock "0:00:00"]

1. a4 {[%clk 0:03:00]}  e6 {[%clk 0:02:55]} 2. Ra3 {[%clk 0:03:01]}  Bxa3 {[%clk 0:02:49]} 3. Nxa3 {[%clk 0:03:02]}  f5 {[%clk 0:02:48]} 4. b3 {[%clk 0:03:03]}  Nf6 {[%clk 0:02:46]} 5. Bb2 {[%clk 0:03:03]}  O-O {[%clk 0:02:42]} 6. Qa1 {[%clk 0:03:03]}  d5 {[%clk 0:02:38]} 7. e3 {[%clk 0:03:03]}  c6 {[%clk 0:02:38]} 8. f4 {[%clk 0:03:03]}  Nbd7 {[%clk 0:02:38]} 9. Nf3 {[%clk 0:03:03]}  Qe7 {[%clk 0:02:35]} 10. h3 {[%clk 0:03:00]}  b6 {[%clk 0:02:30]} 11. Rg1 {[%clk 0:02:59]}  Ne4 {[%clk 0:02:11]} 12. g4 {[%clk 0:02:52]}  g6 {[%clk 0:01:58]} 13. d3 {[%clk 0:02:36]}  Nef6 {[%clk 0:01:50]} 14. Nb1 {[%clk 0:02:10]}  Bb7 {[%clk 0:01:46]} 15. Nbd2 {[%clk 0:02:07]}  Rae8 {[%clk 0:01:38]} 16. Be2 {[%clk 0:01:47]}  Qd6 {[%clk 0:01:29]} 17. Ne5 {[%clk 0:01:42]}  c5 {[%clk 0:01:20]} 18. h4 {[%clk 0:01:09]}  fxg4 {[%clk 0:01:08]} 19. Bxg4 {[%clk 0:01:04]}  Qe7 {[%clk 0:00:45]} 20. h5 {[%clk 0:01:00]}  Nxg4 {[%clk 0:00:26]} 21. Rxg4 {[%clk 0:00:36]}  Nxe5 {[%clk 0:00:17]} 22. Bxe5 {[%clk 0:00:37]}  Qf7 {[%clk 0:00:08]} 23. Ke2 {[%clk 0:00:36]}  Qf5 {[%clk 0:00:05]} 24. Rg5 {[%clk 0:00:27]}  Qh3 {[%clk 0:00:04]} 25. Qg1 {[%clk 0:00:28]}  Rf7 {[%clk 0:00:02]} 26. hxg6 {[%clk 0:00:25]}  hxg6 {[%clk 0:00:00]} 27. Rxg6+ {[%clk 0:00:25]} 1-0

[Event "December 12 Early 2023"]
[Site "https://www.chess.com"]
[Date "2023.12.12"]
[Round "3"]
[White "Erzhanov, Arman"]
[Black "Zhuk, Valeriy"]
[Result "1-0"]
[Board "186"]
[TimeControl "180+1"]
[WhiteFideId "4138821"]
[BlackFideId "24151254"]
[WhiteElo "2511"]
[BlackElo "2327"]
[WhiteTeam "KAZ"]
[BlackTeam "RUS"]
[WhiteClock "0:01:22"]
[BlackClock "0:00:00"]

1. e4 {[%clk 0:02:57]}  e6 {[%clk 0:02:59]} 2. b3 {[%clk 0:02:54]}  c5 {[%clk 0:02:59]} 3. Bb2 {[%clk 0:02:54]}  Nc6 {[%clk 0:02:59]} 4. Bb5 {[%clk 0:02:52]}  Qc7 {[%clk 0:02:58]} 5. Nf3 {[%clk 0:02:52]}  a6 {[%clk 0:02:56]} 6. Be2 {[%clk 0:02:49]}  b5 {[%clk 0:02:56]} 7. O-O {[%clk 0:02:48]}  Bb7 {[%clk 0:02:51]} 8. a4 {[%clk 0:02:48]}  b4 {[%clk 0:02:45]} 9. d3 {[%clk 0:02:48]}  Nf6 {[%clk 0:02:43]} 10. Nbd2 {[%clk 0:02:48]}  d5 {[%clk 0:02:41]} 11. exd5 {[%clk 0:02:44]}  exd5 {[%clk 0:02:38]} 12. Re1 {[%clk 0:02:38]}  Be7 {[%clk 0:02:38]} 13. Bf1 {[%clk 0:02:38]}  O-O {[%clk 0:02:38]} 14. Ne5 {[%clk 0:02:37]}  d4 {[%clk 0:01:57]} 15. Ndc4 {[%clk 0:02:35]}  Nxe5 {[%clk 0:01:45]} 16. Rxe5 {[%clk 0:02:35]}  Rfe8 {[%clk 0:01:38]} 17. Qd2 {[%clk 0:02:13]}  Bd6 {[%clk 0:01:37]} 18. Rxe8+ {[%clk 0:02:12]}  Rxe8 {[%clk 0:01:37]} 19. Nxd6 {[%clk 0:02:08]}  Qxd6 {[%clk 0:01:38]} 20. Re1 {[%clk 0:02:08]}  Rxe1 {[%clk 0:00:59]} 21. Qxe1 {[%clk 0:02:09]}  h6 {[%clk 0:00:54]} 22. h3 {[%clk 0:02:08]}  Kh7 {[%clk 0:00:47]} 23. Bc1 {[%clk 0:02:08]}  g5 {[%clk 0:00:33]} 24. Qd2 {[%clk 0:02:00]}  Kg6 {[%clk 0:00:30]} 25. Qe2 {[%clk 0:01:50]}  Bc6 {[%clk 0:00:27]} 26. Qe1 {[%clk 0:01:49]}  Nd5 {[%clk 0:00:17]} 27. Qe4+ {[%clk 0:01:47]}  f5 {[%clk 0:00:17]} 28. Qe1 {[%clk 0:01:42]}  Nf6 {[%clk 0:00:16]} 29. Be2 {[%clk 0:01:41]}  h5 {[%clk 0:00:16]} 30. Qd1 {[%clk 0:01:40]}  g4 {[%clk 0:00:16]} 31. hxg4 {[%clk 0:01:40]}  hxg4 {[%clk 0:00:17]} 32. Bf1 {[%clk 0:01:39]}  Qd5 {[%clk 0:00:17]} 33. Qd2 {[%clk 0:01:38]}  Kf7 {[%clk 0:00:16]} 34. Qg5 {[%clk 0:01:38]}  Bd7 {[%clk 0:00:13]} 35. Qh4 {[%clk 0:01:37]}  Qe5 {[%clk 0:00:12]} 36. Bg5 {[%clk 0:01:37]}  a5 {[%clk 0:00:08]} 37. Qh8 {[%clk 0:01:36]}  Qd6 {[%clk 0:00:04]} 38. Bh6 {[%clk 0:01:35]}  g3 {[%clk 0:00:03]} 39. Qg7+ {[%clk 0:01:35]}  Ke6 {[%clk 0:00:04]} 40. fxg3 {[%clk 0:01:34]}  Ng4 {[%clk 0:00:00]} 41. Bf4 {[%clk 0:01:22]} 1-0

[Event "December 12 Early 2023"]
[Site "https://www.chess.com"]
[Date "2023.12.12"]
[Round "3"]
[White "Rangel, Daniel"]
[Black "Dubreuil, Julien"]
[Result "1-0"]
[Board "188"]
[TimeControl "180+1"]
[WhiteFideId "2124475"]
[BlackFideId "621285"]
[WhiteElo "2502"]
[BlackElo "2321"]
[WhiteTeam "BRA"]
[BlackTeam "FRA"]
[WhiteClock "0:00:04"]
[BlackClock "0:00:16"]

1. e4 {[%clk 0:03:00]}  e5 {[%clk 0:02:31]} 2. Nf3 {[%clk 0:03:00]}  Nc6 {[%clk 0:02:31]} 3. Bc4 {[%clk 0:03:00]}  Nf6 {[%clk 0:02:31]} 4. d3 {[%clk 0:03:00]}  Be7 {[%clk 0:02:30]} 5. O-O {[%clk 0:03:00]}  d6 {[%clk 0:02:30]} 6. c3 {[%clk 0:02:53]}  O-O {[%clk 0:02:30]} 7. a4 {[%clk 0:02:52]}  Be6 {[%clk 0:02:28]} 8. Bxe6 {[%clk 0:02:47]}  fxe6 {[%clk 0:02:27]} 9. Qb3 {[%clk 0:02:47]}  Qc8 {[%clk 0:02:25]} 10. Ng5 {[%clk 0:02:28]}  Nd8 {[%clk 0:02:24]} 11. Nd2 {[%clk 0:02:24]}  h6 {[%clk 0:02:23]} 12. Ngf3 {[%clk 0:02:25]}  Nh5 {[%clk 0:02:20]} 13. Qd1 {[%clk 0:02:19]}  Nc6 {[%clk 0:02:04]} 14. Re1 {[%clk 0:02:15]}  Qe8 {[%clk 0:02:02]} 15. Nf1 {[%clk 0:02:13]}  Qg6 {[%clk 0:02:00]} 16. Ng3 {[%clk 0:02:12]}  Nf4 {[%clk 0:02:00]} 17. b4 {[%clk 0:02:09]}  Rf7 {[%clk 0:01:51]} 18. b5 {[%clk 0:01:53]}  Na5 {[%clk 0:01:51]} 19. c4 {[%clk 0:01:48]}  Raf8 {[%clk 0:01:48]} 20. Bd2 {[%clk 0:01:46]}  Nxg2 {[%clk 0:01:34]} 21. Kxg2 {[%clk 0:01:26]}  Rxf3 {[%clk 0:01:29]} 22. Bxa5 {[%clk 0:01:00]}  Rxf2+ {[%clk 0:01:28]} 23. Kg1 {[%clk 0:01:00]}  Bh4 {[%clk 0:01:27]} 24. Qh5 {[%clk 0:00:45]}  Qf6 {[%clk 0:01:17]} 25. Qg4 {[%clk 0:00:33]}  Rf4 {[%clk 0:01:05]} 26. Qh3 {[%clk 0:00:31]}  Qg5 {[%clk 0:01:00]} 27. Bd2 {[%clk 0:00:24]}  Bxg3 {[%clk 0:00:57]} 28. hxg3 {[%clk 0:00:23]}  Qg6 {[%clk 0:00:56]} 29. Bxf4 {[%clk 0:00:22]}  exf4 {[%clk 0:00:54]} 30. Rf1 {[%clk 0:00:20]}  f3 {[%clk 0:00:53]} 31. Rf2 {[%clk 0:00:20]}  Qf6 {[%clk 0:00:52]} 32. Raf1 {[%clk 0:00:20]}  Qd4 {[%clk 0:00:51]} 33. Qxe6+ {[%clk 0:00:18]}  Kh8 {[%clk 0:00:51]} 34. Qg4 {[%clk 0:00:16]}  Qe3 {[%clk 0:00:50]} 35. Kh2 {[%clk 0:00:14]}  Rf6 {[%clk 0:00:44]} 36. Rxf3 {[%clk 0:00:14]}  Qe2+ {[%clk 0:00:43]} 37. Kh3 {[%clk 0:00:14]}  h5 {[%clk 0:00:39]} 38. Qxh5+ {[%clk 0:00:13]}  Rh6 {[%clk 0:00:39]} 39. Qxh6+ {[%clk 0:00:12]}  gxh6 {[%clk 0:00:39]} 40. Rf8+ {[%clk 0:00:12]}  Kg7 {[%clk 0:00:39]} 41. R1f7+ {[%clk 0:00:12]}  Kg6 {[%clk 0:00:39]} 42. Rf6+ {[%clk 0:00:12]}  Kg7 {[%clk 0:00:38]} 43. R8f7+ {[%clk 0:00:12]}  Kg8 {[%clk 0:00:38]} 44. Rf8+ {[%clk 0:00:12]}  Kg7 {[%clk 0:00:38]} 45. R6f7+ {[%clk 0:00:12]}  Kg6 {[%clk 0:00:38]} 46. Rf3 {[%clk 0:00:09]}  Qd1 {[%clk 0:00:33]} 47. R8f6+ {[%clk 0:00:09]}  Kg7 {[%clk 0:00:33]} 48. Kg4 {[%clk 0:00:07]}  Qxa4 {[%clk 0:00:31]} 49. Rf7+ {[%clk 0:00:07]}  Kg8 {[%clk 0:00:30]} 50. Rf8+ {[%clk 0:00:07]}  Kg7 {[%clk 0:00:30]} 51. Kh5 {[%clk 0:00:05]}  Qd1 {[%clk 0:00:27]} 52. Rf7+ {[%clk 0:00:04]}  Kg8 {[%clk 0:00:16]} 53. Kg6 {[%clk 0:00:04]} 1-0

[Event "December 12 Early 2023"]
[Site "https://www.chess.com"]
[Date "2023.12.12"]
[Round "3"]
[White "Franchini, Gabriele"]
[Black "Baches Garcia, Guillermo"]
[Result "1-0"]
[Board "189"]
[TimeControl "180+1"]
[WhiteFideId "806790"]
[BlackFideId "2209764"]
[WhiteElo "2319"]
[BlackElo "2497"]
[WhiteTeam "ITA"]
[BlackTeam "ESP"]
[WhiteClock "0:00:08"]
[BlackClock "0:00:15"]

1. e4 {[%clk 0:03:00]}  d5 {[%clk 0:03:00]} 2. exd5 {[%clk 0:03:00]}  Qxd5 {[%clk 0:03:01]} 3. Nf3 {[%clk 0:03:00]}  Bg4 {[%clk 0:02:59]} 4. Be2 {[%clk 0:03:00]}  Nc6 {[%clk 0:03:00]} 5. h3 {[%clk 0:02:59]}  Bh5 {[%clk 0:02:59]} 6. d4 {[%clk 0:02:54]}  O-O-O {[%clk 0:02:51]} 7. c4 {[%clk 0:02:54]}  Qd7 {[%clk 0:02:41]} 8. d5 {[%clk 0:02:35]}  Bxf3 {[%clk 0:02:38]} 9. Bxf3 {[%clk 0:02:34]}  Ne5 {[%clk 0:02:37]} 10. O-O {[%clk 0:02:34]}  e6 {[%clk 0:02:28]} 11. Bf4 {[%clk 0:02:09]}  Nxf3+ {[%clk 0:02:20]} 12. Qxf3 {[%clk 0:02:08]}  exd5 {[%clk 0:02:19]} 13. Nc3 {[%clk 0:01:48]}  Nf6 {[%clk 0:02:14]} 14. Nb5 {[%clk 0:01:28]}  Bd6 {[%clk 0:02:00]} 15. Bxd6 {[%clk 0:01:13]}  cxd6 {[%clk 0:02:00]} 16. Nxa7+ {[%clk 0:01:07]}  Kb8 {[%clk 0:01:59]} 17. Nb5 {[%clk 0:00:47]}  dxc4 {[%clk 0:01:55]} 18. a4 {[%clk 0:00:42]}  Qc6 {[%clk 0:01:49]} 19. Qf4 {[%clk 0:00:32]}  Rhe8 {[%clk 0:01:41]} 20. Rfc1 {[%clk 0:00:31]}  Re4 {[%clk 0:01:36]} 21. Qg3 {[%clk 0:00:27]}  Nh5 {[%clk 0:01:16]} 22. Qc3 {[%clk 0:00:26]}  Qc5 {[%clk 0:01:02]} 23. Qa5 {[%clk 0:00:26]}  Rde8 {[%clk 0:00:55]} 24. b4 {[%clk 0:00:25]}  Qd5 {[%clk 0:00:35]} 25. Qc7+ {[%clk 0:00:24]}  Ka8 {[%clk 0:00:35]} 26. Qa5+ {[%clk 0:00:18]}  Kb8 {[%clk 0:00:35]} 27. Qc7+ {[%clk 0:00:17]}  Ka8 {[%clk 0:00:36]} 28. Nxd6 {[%clk 0:00:14]}  R8e7 {[%clk 0:00:20]} 29. Qd8+ {[%clk 0:00:09]}  Ka7 {[%clk 0:00:20]} 30. Rd1 {[%clk 0:00:08]}  Qc6 {[%clk 0:00:16]} 31. b5 {[%clk 0:00:07]}  Qc5 {[%clk 0:00:15]} 32. Nxe4 {[%clk 0:00:06]}  Rxe4 {[%clk 0:00:14]} 33. Qa5+ {[%clk 0:00:06]}  Kb8 {[%clk 0:00:13]} 34. Rd8+ {[%clk 0:00:07]}  Qc8 {[%clk 0:00:13]} 35. Rxc8+ {[%clk 0:00:07]}  Kxc8 {[%clk 0:00:14]} 36. Rc1 {[%clk 0:00:07]}  Re8 {[%clk 0:00:15]} 37. Qa8+ {[%clk 0:00:07]}  Kd7 {[%clk 0:00:15]} 38. Rd1+ {[%clk 0:00:07]}  Ke7 {[%clk 0:00:14]} 39. Re1+ {[%clk 0:00:07]}  Kf8 {[%clk 0:00:15]} 40. Qxe8# {[%clk 0:00:08]} 1-0

[Event "December 12 Early 2023"]
[Site "https://www.chess.com"]
[Date "2023.12.12"]
[Round "3"]
[White "Silvestre, Christian"]
[Black "Shukhman, Anna"]
[Result "1-0"]
[Board "192"]
[TimeControl "180+1"]
[WhiteFideId "30956269"]
[BlackFideId "54180058"]
[WhiteElo "2309"]
[BlackElo "2489"]
[WhiteTeam "USA"]
[BlackTeam "FID"]
[WhiteClock "0:00:12"]
[BlackClock "0:00:32"]

1. e4 {[%clk 0:03:00]}  Nf6 {[%clk 0:02:59]} 2. e5 {[%clk 0:03:00]}  Nd5 {[%clk 0:03:00]} 3. c4 {[%clk 0:02:57]}  Nb6 {[%clk 0:02:59]} 4. b3 {[%clk 0:02:53]}  g6 {[%clk 0:02:56]} 5. Bb2 {[%clk 0:02:52]}  Bg7 {[%clk 0:02:56]} 6. d4 {[%clk 0:02:52]}  d6 {[%clk 0:02:51]} 7. exd6 {[%clk 0:02:40]}  cxd6 {[%clk 0:02:52]} 8. Be2 {[%clk 0:02:13]}  O-O {[%clk 0:02:49]} 9. Nf3 {[%clk 0:02:11]}  Nc6 {[%clk 0:02:47]} 10. h3 {[%clk 0:02:07]}  e5 {[%clk 0:02:43]} 11. dxe5 {[%clk 0:02:06]}  dxe5 {[%clk 0:02:42]} 12. O-O {[%clk 0:02:06]}  e4 {[%clk 0:02:35]} 13. Bxg7 {[%clk 0:02:00]}  Qxd1 {[%clk 0:02:32]} 14. Bxd1 {[%clk 0:01:56]}  Kxg7 {[%clk 0:02:32]} 15. Ne1 {[%clk 0:01:45]}  f5 {[%clk 0:02:30]} 16. Nc3 {[%clk 0:01:44]}  Be6 {[%clk 0:02:27]} 17. f3 {[%clk 0:01:27]}  e3 {[%clk 0:02:21]} 18. f4 {[%clk 0:01:03]}  Nd4 {[%clk 0:01:33]} 19. Nf3 {[%clk 0:00:57]}  Rad8 {[%clk 0:01:28]} 20. Re1 {[%clk 0:00:38]}  Nxf3+ {[%clk 0:01:21]} 21. Bxf3 {[%clk 0:00:36]}  Rd3 {[%clk 0:01:21]} 22. Nd1 {[%clk 0:00:33]}  Rfd8 {[%clk 0:01:16]} 23. Nxe3 {[%clk 0:00:32]}  Bc8 {[%clk 0:01:16]} 24. Nd5 {[%clk 0:00:31]}  Nxd5 {[%clk 0:01:04]} 25. Bxd5 {[%clk 0:00:32]}  Kf6 {[%clk 0:01:03]} 26. Rad1 {[%clk 0:00:30]}  Rxd1 {[%clk 0:01:01]} 27. Rxd1 {[%clk 0:00:31]}  b6 {[%clk 0:01:01]} 28. Kf2 {[%clk 0:00:30]}  h6 {[%clk 0:00:55]} 29. g3 {[%clk 0:00:28]}  g5 {[%clk 0:00:54]} 30. Re1 {[%clk 0:00:27]}  Bd7 {[%clk 0:00:51]} 31. h4 {[%clk 0:00:24]}  gxf4 {[%clk 0:00:51]} 32. gxf4 {[%clk 0:00:23]}  Rc8 {[%clk 0:00:49]} 33. h5 {[%clk 0:00:22]}  b5 {[%clk 0:00:48]} 34. Rg1 {[%clk 0:00:22]}  Be8 {[%clk 0:00:48]} 35. Rg8 {[%clk 0:00:21]}  bxc4 {[%clk 0:00:46]} 36. bxc4 {[%clk 0:00:19]}  Rb8 {[%clk 0:00:45]} 37. Ke3 {[%clk 0:00:17]}  Rb1 {[%clk 0:00:44]} 38. Kd4 {[%clk 0:00:15]}  Bxh5 {[%clk 0:00:41]} 39. Rf8+ {[%clk 0:00:13]}  Ke7 {[%clk 0:00:36]} 40. Rxf5 {[%clk 0:00:11]}  Bg6 {[%clk 0:00:35]} 41. Re5+ {[%clk 0:00:12]}  Kf6 {[%clk 0:00:35]} 42. Re6+ {[%clk 0:00:12]}  Kg7 {[%clk 0:00:35]} 43. Rxg6+ {[%clk 0:00:12]}  Kxg6 {[%clk 0:00:32]} 44. Be4+ {[%clk 0:00:12]} 1-0

[Event "December 12 Early 2023"]
[Site "https://www.chess.com"]
[Date "2023.12.12"]
[Round "3"]
[White "Kovalevsky, Stanislav"]
[Black "Petrova, Irina"]
[Result "1-0"]
[Board "193"]
[TimeControl "180+1"]
[WhiteFideId "13508598"]
[BlackFideId "14124122"]
[WhiteElo "2478"]
[BlackElo "2304"]
[WhiteTeam "FID"]
[BlackTeam "UKR"]
[WhiteClock "0:00:50"]
[BlackClock "0:00:34"]

1. e4 {[%clk 0:02:58]}  d6 {[%clk 0:02:59]} 2. c4 {[%clk 0:02:57]}  Nf6 {[%clk 0:02:59]} 3. Nc3 {[%clk 0:02:58]}  e5 {[%clk 0:02:59]} 4. g3 {[%clk 0:02:58]}  Nc6 {[%clk 0:02:58]} 5. Bg2 {[%clk 0:02:59]}  Nd4 {[%clk 0:02:57]} 6. h3 {[%clk 0:02:55]}  Be7 {[%clk 0:02:57]} 7. Nge2 {[%clk 0:02:53]}  Nxe2 {[%clk 0:02:53]} 8. Nxe2 {[%clk 0:02:51]}  O-O {[%clk 0:02:54]} 9. O-O {[%clk 0:02:51]}  Be6 {[%clk 0:02:53]} 10. d3 {[%clk 0:02:51]}  c6 {[%clk 0:02:52]} 11. f4 {[%clk 0:02:50]}  Qc8 {[%clk 0:02:47]} 12. Kh2 {[%clk 0:02:45]}  b5 {[%clk 0:02:44]} 13. f5 {[%clk 0:02:39]}  Bd7 {[%clk 0:02:43]} 14. g4 {[%clk 0:02:36]}  h6 {[%clk 0:02:40]} 15. Ng3 {[%clk 0:02:34]}  Rd8 {[%clk 0:02:34]} 16. h4 {[%clk 0:02:34]}  d5 {[%clk 0:02:14]} 17. g5 {[%clk 0:02:34]}  hxg5 {[%clk 0:02:14]} 18. hxg5 {[%clk 0:02:34]}  Nh7 {[%clk 0:02:09]} 19. Qh5 {[%clk 0:02:12]}  dxc4 {[%clk 0:02:04]} 20. f6 {[%clk 0:01:51]}  g6 {[%clk 0:02:00]} 21. Qh4 {[%clk 0:01:30]}  Bf8 {[%clk 0:01:58]} 22. Rh1 {[%clk 0:01:29]}  Bg4 {[%clk 0:01:06]} 23. Kg1 {[%clk 0:01:06]}  Bc5+ {[%clk 0:01:05]} 24. Kf1 {[%clk 0:01:06]}  Kf8 {[%clk 0:00:58]} 25. Qxh7 {[%clk 0:00:59]}  Ke8 {[%clk 0:00:58]} 26. Qg8+ {[%clk 0:00:51]}  Bf8 {[%clk 0:00:57]} 27. Qxf8+ {[%clk 0:00:51]}  Kxf8 {[%clk 0:00:34]} 28. Rh8# {[%clk 0:00:50]} 1-0

[Event "December 12 Early 2023"]
[Site "https://www.chess.com"]
[Date "2023.12.12"]
[Round "3"]
[White "Shapiro, Daniel"]
[Black "Kukreja Sankalp"]
[Result "1-0"]
[Board "194"]
[TimeControl "180+1"]
[WhiteFideId "2001780"]
[BlackFideId "45027676"]
[WhiteElo "2303"]
[BlackElo "2470"]
[WhiteTeam "USA"]
[BlackTeam "IND"]
[WhiteClock "0:00:20"]
[BlackClock "0:00:09"]

1. d4 {[%clk 0:03:00]}  d5 {[%clk 0:02:49]} 2. c4 {[%clk 0:03:00]}  c6 {[%clk 0:02:34]} 3. Nf3 {[%clk 0:02:59]}  Nf6 {[%clk 0:02:34]} 4. Qb3 {[%clk 0:03:00]}  dxc4 {[%clk 0:02:32]} 5. Qxc4 {[%clk 0:02:59]}  Bf5 {[%clk 0:02:33]} 6. Nc3 {[%clk 0:02:54]}  Nbd7 {[%clk 0:02:30]} 7. Qb3 {[%clk 0:02:53]}  Qb6 {[%clk 0:02:16]} 8. Nd2 {[%clk 0:02:52]}  e5 {[%clk 0:01:44]} 9. Qxb6 {[%clk 0:02:45]}  axb6 {[%clk 0:01:43]} 10. dxe5 {[%clk 0:02:44]}  Nxe5 {[%clk 0:01:43]} 11. e4 {[%clk 0:02:44]}  Be6 {[%clk 0:01:42]} 12. f4 {[%clk 0:02:41]}  Neg4 {[%clk 0:01:18]} 13. Nc4 {[%clk 0:02:21]}  Bb4 {[%clk 0:01:04]} 14. h3 {[%clk 0:02:17]}  Nxe4 {[%clk 0:00:56]} 15. hxg4 {[%clk 0:02:03]}  Nxc3 {[%clk 0:00:56]} 16. Bd2 {[%clk 0:02:03]}  Nd5 {[%clk 0:00:55]} 17. f5 {[%clk 0:01:49]}  Bd7 {[%clk 0:00:54]} 18. Bxb4 {[%clk 0:01:32]}  Nxb4 {[%clk 0:00:55]} 19. O-O-O {[%clk 0:01:05]}  Rxa2 {[%clk 0:00:27]} 20. Kb1 {[%clk 0:00:40]}  c5 {[%clk 0:00:17]} 21. Nxb6 {[%clk 0:00:23]}  Bc6 {[%clk 0:00:17]} 22. Bc4 {[%clk 0:00:21]}  O-O {[%clk 0:00:09]} 23. Bxa2 {[%clk 0:00:20]} 1-0

[Event "December 12 Early 2023"]
[Site "https://www.chess.com"]
[Date "2023.12.12"]
[Round "3"]
[White "Kuznetsova, Olga"]
[Black "Antonio, Jorge Carlos"]
[Result "0-1"]
[Board "197"]
[TimeControl "180+1"]
[WhiteFideId "4191323"]
[BlackFideId "113190"]
[WhiteElo "2461"]
[BlackElo "2293"]
[WhiteTeam "RUS"]
[BlackTeam "ARG"]
[WhiteClock "0:00:34"]
[BlackClock "0:00:19"]

1. d4 {[%clk 0:03:00]}  d5 {[%clk 0:02:57]} 2. Bf4 {[%clk 0:03:00]}  c6 {[%clk 0:02:57]} 3. e3 {[%clk 0:03:01]}  Nf6 {[%clk 0:02:53]} 4. Nd2 {[%clk 0:03:00]}  Qb6 {[%clk 0:02:49]} 5. c4 {[%clk 0:02:59]}  Qxb2 {[%clk 0:02:47]} 6. Rb1 {[%clk 0:02:53]}  Qxa2 {[%clk 0:02:41]} 7. Ra1 {[%clk 0:02:42]}  Qb2 {[%clk 0:02:35]} 8. Ngf3 {[%clk 0:02:40]}  Qb6 {[%clk 0:02:32]} 9. Bd3 {[%clk 0:02:33]}  e6 {[%clk 0:02:25]} 10. O-O {[%clk 0:02:32]}  Qd8 {[%clk 0:02:20]} 11. Qb3 {[%clk 0:02:28]}  Bd6 {[%clk 0:02:16]} 12. Bxd6 {[%clk 0:02:20]}  Qxd6 {[%clk 0:02:15]} 13. c5 {[%clk 0:02:21]}  Qc7 {[%clk 0:02:10]} 14. e4 {[%clk 0:02:20]}  dxe4 {[%clk 0:02:10]} 15. Nxe4 {[%clk 0:02:19]}  Nxe4 {[%clk 0:02:05]} 16. Bxe4 {[%clk 0:02:20]}  Nd7 {[%clk 0:02:03]} 17. Rfe1 {[%clk 0:02:19]}  O-O {[%clk 0:01:59]} 18. Qe3 {[%clk 0:02:01]}  b5 {[%clk 0:01:54]} 19. Qg5 {[%clk 0:01:54]}  Nf6 {[%clk 0:01:50]} 20. Ne5 {[%clk 0:01:50]}  Nxe4 {[%clk 0:01:46]} 21. Rxe4 {[%clk 0:01:51]}  f6 {[%clk 0:01:43]} 22. Qg4 {[%clk 0:01:38]}  fxe5 {[%clk 0:01:36]} 23. Rxe5 {[%clk 0:01:39]}  Rf6 {[%clk 0:01:30]} 24. h4 {[%clk 0:01:36]}  Bd7 {[%clk 0:01:29]} 25. h5 {[%clk 0:01:36]}  h6 {[%clk 0:01:24]} 26. Rae1 {[%clk 0:01:33]}  Re8 {[%clk 0:01:20]} 27. Qe4 {[%clk 0:01:33]}  a5 {[%clk 0:01:17]} 28. g4 {[%clk 0:01:31]}  Ref8 {[%clk 0:01:12]} 29. g5 {[%clk 0:01:31]}  Rf4 {[%clk 0:01:06]} 30. Qg6 {[%clk 0:01:27]}  Rg4+ {[%clk 0:01:00]} 31. Kf1 {[%clk 0:01:26]}  Rxg5 {[%clk 0:00:56]} 32. Rxg5 {[%clk 0:01:25]}  hxg5 {[%clk 0:00:56]} 33. h6 {[%clk 0:01:25]}  Be8 {[%clk 0:00:53]} 34. Qxe6+ {[%clk 0:01:25]}  Qf7 {[%clk 0:00:52]} 35. hxg7 {[%clk 0:01:15]}  Kxg7 {[%clk 0:00:49]} 36. Qe5+ {[%clk 0:01:08]}  Qf6 {[%clk 0:00:46]} 37. Qg3 {[%clk 0:01:08]}  Qf4 {[%clk 0:00:38]} 38. Qg2 {[%clk 0:01:02]}  Qf3 {[%clk 0:00:35]} 39. Qxg5+ {[%clk 0:01:01]}  Bg6 {[%clk 0:00:34]} 40. Re7+ {[%clk 0:01:01]}  Rf7 {[%clk 0:00:34]} 41. Qe5+ {[%clk 0:01:00]}  Qf6 {[%clk 0:00:32]} 42. Rxf7+ {[%clk 0:00:57]}  Bxf7 {[%clk 0:00:29]} 43. Qg3+ {[%clk 0:00:57]}  Bg6 {[%clk 0:00:27]} 44. Qc7+ {[%clk 0:00:57]}  Kh6 {[%clk 0:00:24]} 45. Qxa5 {[%clk 0:00:45]}  Bd3+ {[%clk 0:00:21]} 46. Ke1 {[%clk 0:00:40]}  Qe6+ {[%clk 0:00:19]} 47. Kd2 {[%clk 0:00:37]}  Qe2+ {[%clk 0:00:18]} 48. Kc3 {[%clk 0:00:34]}  Qe1+ {[%clk 0:00:19]} 0-1

[Event "December 12 Early 2023"]
[Site "https://www.chess.com"]
[Date "2023.12.12"]
[Round "3"]
[White "YurasovMat-2012"]
[Black "Nasybullina, Alfia"]
[Result "0-1"]
[Board "199"]
[TimeControl "180+1"]
[BlackFideId "4132416"]
[WhiteElo "2457"]
[BlackElo "2274"]
[BlackTeam "KAZ"]
[WhiteClock "0:01:24"]
[BlackClock "0:01:08"]

1. e4 {[%clk 0:03:00]}  c6 {[%clk 0:03:00]} 2. Nf3 {[%clk 0:02:49]}  d5 {[%clk 0:03:00]} 3. d3 {[%clk 0:02:50]}  dxe4 {[%clk 0:02:59]} 4. dxe4 {[%clk 0:02:51]}  Qxd1+ {[%clk 0:02:59]} 5. Kxd1 {[%clk 0:02:52]}  Nf6 {[%clk 0:02:59]} 6. Nc3 {[%clk 0:02:52]}  Bg4 {[%clk 0:02:59]} 7. e5 {[%clk 0:02:51]}  Bxf3+ {[%clk 0:02:55]} 8. gxf3 {[%clk 0:02:51]}  Nd5 {[%clk 0:02:56]} 9. Nxd5 {[%clk 0:02:50]}  cxd5 {[%clk 0:02:56]} 10. f4 {[%clk 0:02:51]}  e6 {[%clk 0:02:55]} 11. c4 {[%clk 0:02:51]}  dxc4 {[%clk 0:02:54]} 12. Bxc4 {[%clk 0:02:51]}  Nc6 {[%clk 0:02:54]} 13. Be3 {[%clk 0:02:50]}  Be7 {[%clk 0:02:53]} 14. Ke2 {[%clk 0:02:51]}  O-O {[%clk 0:02:53]} 15. h4 {[%clk 0:02:51]}  h5 {[%clk 0:02:52]} 16. Rad1 {[%clk 0:02:47]}  Rfd8 {[%clk 0:02:50]} 17. a3 {[%clk 0:02:46]}  g6 {[%clk 0:02:44]} 18. b4 {[%clk 0:02:45]}  Rxd1 {[%clk 0:02:36]} 19. Rxd1 {[%clk 0:02:45]}  Rd8 {[%clk 0:02:37]} 20. Rxd8+ {[%clk 0:02:45]}  Bxd8 {[%clk 0:02:37]} 21. Bb5 {[%clk 0:02:44]}  a6 {[%clk 0:02:35]} 22. Bd3 {[%clk 0:02:36]}  Bxh4 {[%clk 0:02:33]} 23. Be4 {[%clk 0:02:36]}  Be7 {[%clk 0:02:32]} 24. Kd3 {[%clk 0:02:36]}  Kf8 {[%clk 0:02:25]} 25. Kc4 {[%clk 0:02:36]}  b5+ {[%clk 0:02:19]} 26. Kd3 {[%clk 0:02:35]}  Nd8 {[%clk 0:02:08]} 27. Kc3 {[%clk 0:02:34]}  h4 {[%clk 0:02:08]} 28. Kb3 {[%clk 0:02:33]}  h3 {[%clk 0:02:06]} 29. a4 {[%clk 0:02:33]}  h2 {[%clk 0:01:59]} 30. axb5 {[%clk 0:02:30]}  axb5 {[%clk 0:02:00]} 31. Bc5 {[%clk 0:02:30]}  Ke8 {[%clk 0:01:55]} 32. Kc3 {[%clk 0:02:27]}  Bh4 {[%clk 0:01:49]} 33. Kd3 {[%clk 0:02:21]}  Kd7 {[%clk 0:01:49]} 34. Ke2 {[%clk 0:02:20]}  Nc6 {[%clk 0:01:48]} 35. Kf1 {[%clk 0:02:20]}  g5 {[%clk 0:01:45]} 36. fxg5 {[%clk 0:02:05]}  Bxg5 {[%clk 0:01:46]} 37. Kg2 {[%clk 0:02:04]}  Nxe5 {[%clk 0:01:44]} 38. Kxh2 {[%clk 0:02:02]}  Be7 {[%clk 0:01:38]} 39. Kg3 {[%clk 0:01:54]}  f5 {[%clk 0:01:35]} 40. Bg2 {[%clk 0:01:53]}  Bd6 {[%clk 0:01:35]} 41. Bf1 {[%clk 0:01:39]}  Bxc5 {[%clk 0:01:14]} 42. bxc5 {[%clk 0:01:40]}  Kc6 {[%clk 0:01:14]} 43. Kf4 {[%clk 0:01:37]}  Nc4 {[%clk 0:01:11]} 44. Kg5 {[%clk 0:01:31]}  Kxc5 {[%clk 0:01:11]} 45. Kf6 {[%clk 0:01:30]}  Kd6 {[%clk 0:01:11]} 46. f4 {[%clk 0:01:29]}  Na3 {[%clk 0:01:08]} 47. Bd3 {[%clk 0:01:24]}  b4 {[%clk 0:01:08]} 0-1